[Event "Titled Tuesday Blitz May 16 Early 2023"]
[White "koncheto"]
[Black "Rios Escobar, Adan"]
[BlackFideId "3403645"]
[WhiteElo "2569"]
[BlackElo "2468"]
[Result "1/2-1/2"]
[Round "11"]
[TimeControl "180+2"]
[Date "2023.05.16"]
[WhiteClock "0:00:04"]
[BlackClock "0:00:03"]

1. e4 {[%clk 0:03:00]}  c5 {[%clk 0:02:57]} 2. Nf3 {[%clk 0:03:01]}  d6 {[%clk 0:02:57]} 3. d4 {[%clk 0:03:01]}  cxd4 {[%clk 0:02:58]} 4. Nxd4 {[%clk 0:03:02]}  Nf6 {[%clk 0:02:59]} 5. f3 {[%clk 0:03:02]}  e5 {[%clk 0:02:45]} 6. Nb3 {[%clk 0:03:02]}  a5 {[%clk 0:02:46]} 7. a4 {[%clk 0:03:00]}  d5 {[%clk 0:02:44]} 8. Bg5 {[%clk 0:02:57]}  d4 {[%clk 0:02:24]} 9. c3 {[%clk 0:02:57]}  Nc6 {[%clk 0:02:04]} 10. Bb5 {[%clk 0:02:56]}  Be6 {[%clk 0:01:57]} 11. cxd4 {[%clk 0:02:50]}  Bb4+ {[%clk 0:01:57]} 12. Nc3 {[%clk 0:02:50]}  Bxb3 {[%clk 0:01:53]} 13. Qxb3 {[%clk 0:02:45]}  exd4 {[%clk 0:01:53]} 14. O-O-O {[%clk 0:02:27]}  O-O {[%clk 0:01:44]} 15. Bxf6 {[%clk 0:02:25]}  Qxf6 {[%clk 0:01:35]} 16. Nd5 {[%clk 0:02:25]}  Qh6+ {[%clk 0:01:35]} 17. Kb1 {[%clk 0:02:24]}  Rfd8 {[%clk 0:01:17]} 18. Rd3 {[%clk 0:02:17]}  Rd6 {[%clk 0:01:10]} 19. Bxc6 {[%clk 0:02:07]}  bxc6 {[%clk 0:01:03]} 20. Nxb4 {[%clk 0:02:07]}  Rb8 {[%clk 0:00:59]} 21. e5 {[%clk 0:01:42]}  Rxb4 {[%clk 0:00:53]} 22. exd6 {[%clk 0:01:10]}  Rxb3 {[%clk 0:00:52]} 23. Rxb3 {[%clk 0:00:34]}  Qxd6 {[%clk 0:00:52]} 24. Rc1 {[%clk 0:00:30]}  g6 {[%clk 0:00:42]} 25. h3 {[%clk 0:00:24]}  d3 {[%clk 0:00:31]} 26. Rd1 {[%clk 0:00:23]}  d2 {[%clk 0:00:28]} 27. Rc3 {[%clk 0:00:18]}  Qd4 {[%clk 0:00:19]} 28. Rxc6 {[%clk 0:00:15]}  Qxa4 {[%clk 0:00:19]} 29. Rc2 {[%clk 0:00:15]}  Qb4 {[%clk 0:00:17]} 30. Rcxd2 {[%clk 0:00:15]}  a4 {[%clk 0:00:17]} 31. Rd4 {[%clk 0:00:14]}  Qb3 {[%clk 0:00:16]} 32. R1d3 {[%clk 0:00:14]}  Qb5 {[%clk 0:00:16]} 33. Ka2 {[%clk 0:00:10]}  h5 {[%clk 0:00:15]} 34. g4 {[%clk 0:00:06]}  h4 {[%clk 0:00:13]} 35. f4 {[%clk 0:00:06]}  Qa6 {[%clk 0:00:10]} 36. Ra3 {[%clk 0:00:05]}  Qe6+ {[%clk 0:00:09]} 37. Ka1 {[%clk 0:00:04]}  Qe1+ {[%clk 0:00:09]} 38. Ka2 {[%clk 0:00:04]}  Qe6+ {[%clk 0:00:10]} 39. Ka1 {[%clk 0:00:04]}  Qe1+ {[%clk 0:00:09]} 40. Ka2 {[%clk 0:00:04]}  Qe6+ {[%clk 0:00:03]} 1/2-1/2


[Site "https://www.chess.com"]

[Event "Titled Tuesday Blitz May 16 Early 2023"]
[White "Panda Sambit"]
[Black "Jaskolka, Tomasz"]
[WhiteFideId "25091794"]
[BlackFideId "1170791"]
[WhiteElo "2272"]
[BlackElo "2155"]
[Result "1-0"]
[Round "11"]
[TimeControl "180+2"]
[Date "2023.05.16"]
[WhiteClock "0:00:12"]
[BlackClock "0:00:15"]

1. Nf3 {[%clk 0:03:00]}  d5 {[%clk 0:02:59]} 2. d4 {[%clk 0:03:01]}  Nc6 {[%clk 0:02:58]} 3. Bf4 {[%clk 0:03:02]}  f6 {[%clk 0:02:58]} 4. c4 {[%clk 0:03:00]}  g5 {[%clk 0:02:59]} 5. cxd5 {[%clk 0:02:51]}  Qxd5 {[%clk 0:02:47]} 6. Nc3 {[%clk 0:02:48]}  Qa5 {[%clk 0:02:47]} 7. Bd2 {[%clk 0:02:44]}  g4 {[%clk 0:02:42]} 8. d5 {[%clk 0:02:28]}  gxf3 {[%clk 0:02:39]} 9. dxc6 {[%clk 0:02:28]}  bxc6 {[%clk 0:02:31]} 10. exf3 {[%clk 0:02:23]}  Ba6 {[%clk 0:02:22]} 11. b4 {[%clk 0:01:49]}  Qe5+ {[%clk 0:02:17]} 12. Be2 {[%clk 0:01:44]}  Rd8 {[%clk 0:01:54]} 13. O-O {[%clk 0:01:35]}  Bh6 {[%clk 0:01:40]} 14. Bxa6 {[%clk 0:00:50]}  Rxd2 {[%clk 0:01:39]} 15. Qb3 {[%clk 0:00:41]}  Bf4 {[%clk 0:01:24]} 16. g3 {[%clk 0:00:38]}  Nh6 {[%clk 0:01:25]} 17. Rae1 {[%clk 0:00:30]}  Qh5 {[%clk 0:01:23]} 18. Ne4 {[%clk 0:00:18]}  Rd5 {[%clk 0:01:10]} 19. Nxf6+ {[%clk 0:00:18]}  Kd8 {[%clk 0:01:05]} 20. Nxh5 {[%clk 0:00:19]}  Rxh5 {[%clk 0:01:05]} 21. Qd3+ {[%clk 0:00:17]}  Bd6 {[%clk 0:01:05]} 22. f4 {[%clk 0:00:16]}  Rg8 {[%clk 0:01:04]} 23. Bb7 {[%clk 0:00:16]}  Ng4 {[%clk 0:01:02]} 24. h4 {[%clk 0:00:10]}  Nf6 {[%clk 0:01:01]} 25. Kh2 {[%clk 0:00:08]}  Ng4+ {[%clk 0:00:58]} 26. Kh3 {[%clk 0:00:07]}  Kd7 {[%clk 0:00:55]} 27. Qf3 {[%clk 0:00:05]}  Nf6 {[%clk 0:00:52]} 28. Bxc6+ {[%clk 0:00:06]}  Kd8 {[%clk 0:00:53]} 29. Qe2 {[%clk 0:00:04]}  Rg6 {[%clk 0:00:37]} 30. g4 {[%clk 0:00:04]}  Rhh6 {[%clk 0:00:24]} 31. g5 {[%clk 0:00:04]}  Nh5 {[%clk 0:00:15]} 32. Qxh5 {[%clk 0:00:05]}  Rxh5 {[%clk 0:00:16]} 33. Bf3 {[%clk 0:00:05]}  Rgxg5 {[%clk 0:00:11]} 34. fxg5 {[%clk 0:00:05]}  Rh6 {[%clk 0:00:11]} 35. gxh6 {[%clk 0:00:05]}  e5 {[%clk 0:00:12]} 36. Kg4 {[%clk 0:00:06]}  Ke7 {[%clk 0:00:12]} 37. Be4 {[%clk 0:00:06]}  Kf6 {[%clk 0:00:13]} 38. h5 {[%clk 0:00:07]}  Bxb4 {[%clk 0:00:14]} 39. f3 {[%clk 0:00:08]}  Bd2 {[%clk 0:00:13]} 40. Re2 {[%clk 0:00:08]}  Bxh6 {[%clk 0:00:14]} 41. Rd1 {[%clk 0:00:09]}  Bf4 {[%clk 0:00:15]} 42. Rd7 {[%clk 0:00:10]}  h6 {[%clk 0:00:16]} 43. Rh7 {[%clk 0:00:10]}  a5 {[%clk 0:00:15]} 44. Rxc7 {[%clk 0:00:11]}  a4 {[%clk 0:00:16]} 45. Rec2 {[%clk 0:00:11]}  Ke6 {[%clk 0:00:15]} 46. R2c6# {[%clk 0:00:12]} 1-0


[Site "https://www.chess.com"]

[Event "Titled Tuesday Blitz May 16 Early 2023"]
[White "merinasian"]
[Black "Bruedigam, Martin"]
[BlackFideId "24608033"]
[WhiteElo "2456"]
[BlackElo "2331"]
[Result "0-1"]
[Round "11"]
[TimeControl "180+2"]
[Date "2023.05.16"]
[WhiteClock "0:00:47"]
[BlackClock "0:00:13"]

1. d4 {[%clk 0:03:00]}  d5 {[%clk 0:02:59]} 2. Nf3 {[%clk 0:03:01]}  Nf6 {[%clk 0:02:58]} 3. g3 {[%clk 0:03:01]}  a6 {[%clk 0:02:57]} 4. Bg2 {[%clk 0:02:59]}  b5 {[%clk 0:02:52]} 5. O-O {[%clk 0:02:59]}  Bb7 {[%clk 0:02:50]} 6. a4 {[%clk 0:02:59]}  Nbd7 {[%clk 0:02:49]} 7. axb5 {[%clk 0:02:56]}  axb5 {[%clk 0:02:50]} 8. Rxa8 {[%clk 0:02:56]}  Qxa8 {[%clk 0:02:49]} 9. Nc3 {[%clk 0:02:46]}  b4 {[%clk 0:02:48]} 10. Nb5 {[%clk 0:02:45]}  Qa5 {[%clk 0:02:48]} 11. c4 {[%clk 0:02:45]}  c6 {[%clk 0:02:46]} 12. Bf4 {[%clk 0:02:14]}  cxb5 {[%clk 0:02:44]} 13. cxb5 {[%clk 0:02:14]}  e6 {[%clk 0:02:41]} 14. Qc2 {[%clk 0:02:03]}  Be7 {[%clk 0:02:38]} 15. Rc1 {[%clk 0:02:02]}  Qxb5 {[%clk 0:02:26]} 16. Qc7 {[%clk 0:01:50]}  O-O {[%clk 0:02:18]} 17. Bf1 {[%clk 0:01:50]}  Rc8 {[%clk 0:02:12]} 18. Qxc8+ {[%clk 0:01:50]}  Bxc8 {[%clk 0:02:12]} 19. Rxc8+ {[%clk 0:01:50]}  Nf8 {[%clk 0:02:11]} 20. e3 {[%clk 0:01:48]}  Qb6 {[%clk 0:01:55]} 21. Ne5 {[%clk 0:01:43]}  h6 {[%clk 0:01:52]} 22. g4 {[%clk 0:01:38]}  Qb7 {[%clk 0:01:45]} 23. Nc6 {[%clk 0:01:35]}  Ne8 {[%clk 0:00:34]} 24. Bb5 {[%clk 0:01:22]}  Qxb5 {[%clk 0:00:19]} 25. Nxe7+ {[%clk 0:01:19]}  Kh7 {[%clk 0:00:19]} 26. Nc6 {[%clk 0:01:16]}  Ng6 {[%clk 0:00:18]} 27. Bg3 {[%clk 0:01:10]}  Nf6 {[%clk 0:00:18]} 28. h3 {[%clk 0:01:08]}  Ne4 {[%clk 0:00:15]} 29. Kg2 {[%clk 0:00:55]}  Nxg3 {[%clk 0:00:15]} 30. Kxg3 {[%clk 0:00:55]}  Qb7 {[%clk 0:00:14]} 31. Rb8 {[%clk 0:00:49]}  Qxc6 {[%clk 0:00:14]} 32. Rxb4 {[%clk 0:00:47]}  Qd6+ {[%clk 0:00:13]} 0-1


[Site "https://www.chess.com"]

[Event "Titled Tuesday Blitz May 16 Early 2023"]
[White "Rottenwohrer Suarez, Juan"]
[Black "Bagwe Gaurang"]
[WhiteFideId "32068182"]
[BlackFideId "45039895"]
[WhiteElo "2174"]
[BlackElo "1847"]
[Result "1-0"]
[Round "11"]
[TimeControl "180+2"]
[Date "2023.05.16"]
[WhiteClock "0:00:15"]
[BlackClock "0:00:31"]

1. Nf3 {[%clk 0:03:00]}  d5 {[%clk 0:02:55]} 2. g3 {[%clk 0:03:01]}  c6 {[%clk 0:02:56]} 3. Bg2 {[%clk 0:03:01]}  h5 {[%clk 0:02:56]} 4. h4 {[%clk 0:02:59]}  g6 {[%clk 0:02:54]} 5. c4 {[%clk 0:02:52]}  dxc4 {[%clk 0:02:52]} 6. O-O {[%clk 0:02:19]}  Bg7 {[%clk 0:02:51]} 7. a4 {[%clk 0:01:50]}  Nh6 {[%clk 0:02:47]} 8. Na3 {[%clk 0:01:50]}  Be6 {[%clk 0:02:43]} 9. Qc2 {[%clk 0:01:48]}  O-O {[%clk 0:02:39]} 10. Nxc4 {[%clk 0:01:46]}  Na6 {[%clk 0:02:39]} 11. d3 {[%clk 0:01:44]}  Nf5 {[%clk 0:02:36]} 12. Bd2 {[%clk 0:01:36]}  Rc8 {[%clk 0:02:27]} 13. Rab1 {[%clk 0:01:36]}  b5 {[%clk 0:02:27]} 14. Nce5 {[%clk 0:01:30]}  b4 {[%clk 0:02:18]} 15. Nc4 {[%clk 0:01:21]}  Nc5 {[%clk 0:02:12]} 16. Bxb4 {[%clk 0:01:19]}  Nb7 {[%clk 0:02:07]} 17. Ba3 {[%clk 0:01:15]}  c5 {[%clk 0:02:06]} 18. Rbd1 {[%clk 0:01:10]}  Nbd6 {[%clk 0:02:04]} 19. b3 {[%clk 0:01:05]}  Nxc4 {[%clk 0:01:59]} 20. bxc4 {[%clk 0:01:01]}  Qc7 {[%clk 0:01:55]} 21. Bb2 {[%clk 0:01:00]}  Nd4 {[%clk 0:01:55]} 22. Bxd4 {[%clk 0:00:54]}  cxd4 {[%clk 0:01:56]} 23. Rb1 {[%clk 0:00:51]}  f5 {[%clk 0:01:53]} 24. Ng5 {[%clk 0:00:51]}  Bd7 {[%clk 0:01:49]} 25. Rb7 {[%clk 0:00:51]}  Qd6 {[%clk 0:01:46]} 26. Rxa7 {[%clk 0:00:49]}  e6 {[%clk 0:01:34]} 27. a5 {[%clk 0:00:44]}  f4 {[%clk 0:01:34]} 28. Ne4 {[%clk 0:00:39]}  Qe7 {[%clk 0:01:29]} 29. Qa4 {[%clk 0:00:28]}  Rcd8 {[%clk 0:01:26]} 30. a6 {[%clk 0:00:27]}  fxg3 {[%clk 0:01:24]} 31. fxg3 {[%clk 0:00:27]}  Rxf1+ {[%clk 0:01:19]} 32. Bxf1 {[%clk 0:00:27]}  g5 {[%clk 0:01:20]} 33. hxg5 {[%clk 0:00:19]}  h4 {[%clk 0:01:20]} 34. gxh4 {[%clk 0:00:17]}  Qf7 {[%clk 0:01:16]} 35. Qa5 {[%clk 0:00:15]}  Rf8 {[%clk 0:01:15]} 36. Bg2 {[%clk 0:00:14]}  Be5 {[%clk 0:01:15]} 37. Qxe5 {[%clk 0:00:13]}  Rd8 {[%clk 0:00:42]} 38. Nf6+ {[%clk 0:00:13]}  Kf8 {[%clk 0:00:42]} 39. Qd6+ {[%clk 0:00:11]}  Kg7 {[%clk 0:00:41]} 40. Rxd7 {[%clk 0:00:12]}  Rxd7 {[%clk 0:00:41]} 41. Qxd7 {[%clk 0:00:12]}  e5 {[%clk 0:00:30]} 42. Qxf7+ {[%clk 0:00:12]}  Kxf7 {[%clk 0:00:30]} 43. a7 {[%clk 0:00:13]}  e4 {[%clk 0:00:29]} 44. a8=Q {[%clk 0:00:13]}  e3 {[%clk 0:00:30]} 45. Qd5+ {[%clk 0:00:13]}  Kg6 {[%clk 0:00:31]} 46. Be4+ {[%clk 0:00:14]}  Kg7 {[%clk 0:00:31]} 47. Qd7+ {[%clk 0:00:14]}  Kh8 {[%clk 0:00:31]} 48. Qh7# {[%clk 0:00:15]} 1-0


[Site "https://www.chess.com"]

[Event "Titled Tuesday Blitz May 16 Early 2023"]
[White "Santarius, Erik"]
[Black "Nastase, Robert-Paul"]
[WhiteFideId "2025817"]
[BlackFideId "1221175"]
[WhiteElo "2300"]
[BlackElo "2175"]
[Result "1-0"]
[Round "11"]
[TimeControl "180+2"]
[Date "2023.05.16"]
[WhiteClock "0:00:11"]
[BlackClock "0:00:00"]

1. e4 {[%clk 0:02:58]}  c5 {[%clk 0:02:58]} 2. b3 {[%clk 0:02:56]}  d5 {[%clk 0:02:57]} 3. exd5 {[%clk 0:02:55]}  Qxd5 {[%clk 0:02:58]} 4. Bb2 {[%clk 0:02:53]}  Nf6 {[%clk 0:02:54]} 5. Nf3 {[%clk 0:02:51]}  Nc6 {[%clk 0:02:53]} 6. Be2 {[%clk 0:02:48]}  Bf5 {[%clk 0:02:43]} 7. O-O {[%clk 0:02:48]}  e6 {[%clk 0:02:43]} 8. c4 {[%clk 0:02:28]}  Qd7 {[%clk 0:02:40]} 9. d4 {[%clk 0:02:27]}  cxd4 {[%clk 0:02:37]} 10. Nxd4 {[%clk 0:02:26]}  Nxd4 {[%clk 0:02:36]} 11. Qxd4 {[%clk 0:02:26]}  Qxd4 {[%clk 0:02:33]} 12. Bxd4 {[%clk 0:02:25]}  Be7 {[%clk 0:02:26]} 13. Nc3 {[%clk 0:02:23]}  O-O {[%clk 0:02:21]} 14. Bf3 {[%clk 0:02:24]}  Rfd8 {[%clk 0:02:06]} 15. Be3 {[%clk 0:02:07]}  Bb4 {[%clk 0:01:59]} 16. Rac1 {[%clk 0:01:53]}  Bxc3 {[%clk 0:01:57]} 17. Rxc3 {[%clk 0:01:54]}  Be4 {[%clk 0:01:58]} 18. Be2 {[%clk 0:01:54]}  a6 {[%clk 0:01:50]} 19. f3 {[%clk 0:01:53]}  Bc6 {[%clk 0:01:49]} 20. Kf2 {[%clk 0:01:53]}  Rd7 {[%clk 0:01:47]} 21. Rd1 {[%clk 0:01:51]}  Rxd1 {[%clk 0:01:46]} 22. Bxd1 {[%clk 0:01:52]}  Rd8 {[%clk 0:01:46]} 23. Be2 {[%clk 0:01:52]}  Nd7 {[%clk 0:01:41]} 24. b4 {[%clk 0:01:48]}  Ne5 {[%clk 0:01:35]} 25. h3 {[%clk 0:01:44]}  f6 {[%clk 0:01:29]} 26. a3 {[%clk 0:01:41]}  Kf7 {[%clk 0:01:28]} 27. Bf4 {[%clk 0:01:26]}  Ng6 {[%clk 0:01:26]} 28. Be3 {[%clk 0:01:25]}  Ne5 {[%clk 0:01:26]} 29. f4 {[%clk 0:01:24]}  Ng6 {[%clk 0:01:22]} 30. b5 {[%clk 0:01:21]}  axb5 {[%clk 0:01:21]} 31. cxb5 {[%clk 0:01:22]}  Bd5 {[%clk 0:01:19]} 32. a4 {[%clk 0:01:22]}  Ra8 {[%clk 0:01:05]} 33. Bd1 {[%clk 0:01:20]}  Ne7 {[%clk 0:00:57]} 34. Rc7 {[%clk 0:01:11]}  Ke8 {[%clk 0:00:58]} 35. Bc5 {[%clk 0:01:11]}  Nc8 {[%clk 0:00:24]} 36. Rxg7 {[%clk 0:01:09]}  b6 {[%clk 0:00:25]} 37. Bb4 {[%clk 0:01:04]}  h6 {[%clk 0:00:18]} 38. g3 {[%clk 0:01:00]}  Ra7 {[%clk 0:00:10]} 39. Rxa7 {[%clk 0:00:46]}  Nxa7 {[%clk 0:00:11]} 40. Ke3 {[%clk 0:00:39]}  Kd7 {[%clk 0:00:11]} 41. Bf8 {[%clk 0:00:36]}  h5 {[%clk 0:00:11]} 42. Kd4 {[%clk 0:00:29]}  Nc8 {[%clk 0:00:10]} 43. Kc3 {[%clk 0:00:23]}  h4 {[%clk 0:00:10]} 44. gxh4 {[%clk 0:00:21]}  Ke8 {[%clk 0:00:09]} 45. Bb4 {[%clk 0:00:20]}  Kf7 {[%clk 0:00:10]} 46. Kd4 {[%clk 0:00:16]}  Kg6 {[%clk 0:00:10]} 47. Bg4 {[%clk 0:00:16]}  f5 {[%clk 0:00:07]} 48. h5+ {[%clk 0:00:16]}  Kh6 {[%clk 0:00:07]} 49. Be2 {[%clk 0:00:16]}  Kh7 {[%clk 0:00:06]} 50. h4 {[%clk 0:00:15]}  Kh6 {[%clk 0:00:06]} 51. Ke5 {[%clk 0:00:15]}  Kh7 {[%clk 0:00:04]} 52. Kf6 {[%clk 0:00:15]}  Bb3 {[%clk 0:00:04]} 53. a5 {[%clk 0:00:14]}  bxa5 {[%clk 0:00:03]} 54. Bxa5 {[%clk 0:00:14]}  Nd6 {[%clk 0:00:04]} 55. b6 {[%clk 0:00:13]}  Bd5 {[%clk 0:00:03]} 56. Bb4 {[%clk 0:00:12]}  Nc8 {[%clk 0:00:02]} 57. Bc5 {[%clk 0:00:12]}  Kh6 {[%clk 0:00:00]} 58. Ke5 {[%clk 0:00:11]} 1-0


[Site "https://www.chess.com"]

[Event "Titled Tuesday Blitz May 16 Early 2023"]
[White "Goldin, Roman"]
[Black "Horak, Martin"]
[WhiteFideId "2803860"]
[BlackFideId "367095"]
[WhiteElo "2312"]
[BlackElo "2091"]
[Result "1-0"]
[Round "11"]
[TimeControl "180+2"]
[Date "2023.05.16"]
[WhiteClock "0:00:05"]
[BlackClock "0:00:25"]

1. Nf3 {[%clk 0:02:57]}  d5 {[%clk 0:02:59]} 2. e3 {[%clk 0:02:56]}  Nf6 {[%clk 0:02:59]} 3. b4 {[%clk 0:02:56]}  Bf5 {[%clk 0:02:55]} 4. Bb2 {[%clk 0:02:54]}  e6 {[%clk 0:02:55]} 5. a3 {[%clk 0:02:54]}  h6 {[%clk 0:02:51]} 6. c4 {[%clk 0:02:54]}  c6 {[%clk 0:02:50]} 7. Be2 {[%clk 0:02:53]}  Be7 {[%clk 0:02:50]} 8. O-O {[%clk 0:02:53]}  O-O {[%clk 0:02:50]} 9. d3 {[%clk 0:02:52]}  a5 {[%clk 0:02:49]} 10. cxd5 {[%clk 0:02:43]}  cxd5 {[%clk 0:02:46]} 11. b5 {[%clk 0:02:41]}  Nbd7 {[%clk 0:02:23]} 12. Nc3 {[%clk 0:02:36]}  Nc5 {[%clk 0:02:21]} 13. Na4 {[%clk 0:02:31]}  Nfd7 {[%clk 0:02:14]} 14. Bd4 {[%clk 0:02:09]}  Nxa4 {[%clk 0:02:09]} 15. Qxa4 {[%clk 0:02:08]}  Nc5 {[%clk 0:02:07]} 16. Bxc5 {[%clk 0:02:05]}  Bxc5 {[%clk 0:02:08]} 17. d4 {[%clk 0:02:03]}  Bd6 {[%clk 0:02:08]} 18. Rac1 {[%clk 0:01:56]}  Qe7 {[%clk 0:01:55]} 19. Rc3 {[%clk 0:01:54]}  Bb4 {[%clk 0:01:36]} 20. Rcc1 {[%clk 0:00:47]}  Bxa3 {[%clk 0:01:37]} 21. Ra1 {[%clk 0:00:39]}  Bb4 {[%clk 0:01:35]} 22. b6 {[%clk 0:00:39]}  Rac8 {[%clk 0:01:30]} 23. Rfc1 {[%clk 0:00:33]}  f6 {[%clk 0:01:16]} 24. Bb5 {[%clk 0:00:29]}  Qd6 {[%clk 0:01:12]} 25. Nh4 {[%clk 0:00:24]}  Bh7 {[%clk 0:01:10]} 26. Bd7 {[%clk 0:00:22]}  Rxc1+ {[%clk 0:01:07]} 27. Rxc1 {[%clk 0:00:22]}  Qxb6 {[%clk 0:01:08]} 28. Be8 {[%clk 0:00:18]}  Qd8 {[%clk 0:00:51]} 29. Bg6 {[%clk 0:00:18]}  Bxg6 {[%clk 0:00:51]} 30. Nxg6 {[%clk 0:00:18]}  Qe8 {[%clk 0:00:51]} 31. Qc2 {[%clk 0:00:10]}  Rf7 {[%clk 0:00:48]} 32. h4 {[%clk 0:00:07]}  h5 {[%clk 0:00:46]} 33. Qe2 {[%clk 0:00:07]}  f5 {[%clk 0:00:35]} 34. Qxh5 {[%clk 0:00:07]}  Rf6 {[%clk 0:00:35]} 35. Rc8 {[%clk 0:00:04]}  Qxc8 {[%clk 0:00:29]} 36. Qh8+ {[%clk 0:00:04]}  Kf7 {[%clk 0:00:30]} 37. Ne5+ {[%clk 0:00:04]}  Ke7 {[%clk 0:00:27]} 38. Qxc8 {[%clk 0:00:05]}  Bd6 {[%clk 0:00:25]} 39. Qd7+ {[%clk 0:00:05]}  Kf8 {[%clk 0:00:25]} 40. Qd8# {[%clk 0:00:05]} 1-0


[Site "https://www.chess.com"]

[Event "Titled Tuesday Blitz May 16 Early 2023"]
[White "Tomiello, Mateus Costamilan"]
[Black "Blokhin, Sofia"]
[WhiteFideId "22701958"]
[BlackFideId "4508190"]
[WhiteElo "1990"]
[BlackElo "1994"]
[Result "0-1"]
[Round "11"]
[TimeControl "180+2"]
[Date "2023.05.16"]
[WhiteClock "0:00:00"]
[BlackClock "0:00:04"]

1. e4 {[%clk 0:02:54]}  c5 {[%clk 0:02:58]} 2. Nf3 {[%clk 0:02:52]}  e6 {[%clk 0:02:57]} 3. d4 {[%clk 0:02:52]}  cxd4 {[%clk 0:02:57]} 4. Nxd4 {[%clk 0:02:53]}  a6 {[%clk 0:02:57]} 5. c4 {[%clk 0:02:49]}  Nf6 {[%clk 0:02:56]} 6. Nc3 {[%clk 0:02:43]}  Bb4 {[%clk 0:02:55]} 7. Nc2 {[%clk 0:02:44]}  Bxc3+ {[%clk 0:02:53]} 8. bxc3 {[%clk 0:02:45]}  Nc6 {[%clk 0:02:50]} 9. Ba3 {[%clk 0:02:41]}  Nxe4 {[%clk 0:02:49]} 10. Qg4 {[%clk 0:02:37]}  Nf6 {[%clk 0:02:32]} 11. Qxg7 {[%clk 0:02:28]}  Rg8 {[%clk 0:02:32]} 12. Qh6 {[%clk 0:02:28]}  d6 {[%clk 0:02:20]} 13. O-O-O {[%clk 0:02:23]}  d5 {[%clk 0:02:10]} 14. cxd5 {[%clk 0:02:19]}  exd5 {[%clk 0:02:08]} 15. Bd3 {[%clk 0:02:14]}  Be6 {[%clk 0:02:07]} 16. Rhe1 {[%clk 0:02:03]}  Ng4 {[%clk 0:01:53]} 17. Qxh7 {[%clk 0:01:40]}  Qg5+ {[%clk 0:01:52]} 18. Kb1 {[%clk 0:01:38]}  O-O-O {[%clk 0:01:43]} 19. h4 {[%clk 0:01:12]}  Qf6 {[%clk 0:01:36]} 20. Be2 {[%clk 0:00:54]}  Bf5 {[%clk 0:01:22]} 21. Qh5 {[%clk 0:00:49]}  Rg6 {[%clk 0:01:10]} 22. Bc1 {[%clk 0:00:26]}  Rh8 {[%clk 0:01:03]} 23. Bg5 {[%clk 0:00:26]}  Rxh5 {[%clk 0:00:53]} 24. Bxf6 {[%clk 0:00:26]}  Rxf6 {[%clk 0:00:53]} 25. Bxg4 {[%clk 0:00:21]}  Bxg4 {[%clk 0:00:53]} 26. f3 {[%clk 0:00:21]}  Bf5 {[%clk 0:00:52]} 27. Rh1 {[%clk 0:00:17]}  Bxc2+ {[%clk 0:00:52]} 28. Kxc2 {[%clk 0:00:18]}  Rfh6 {[%clk 0:00:50]} 29. g3 {[%clk 0:00:18]}  Ne5 {[%clk 0:00:48]} 30. Rdf1 {[%clk 0:00:17]}  Nc4 {[%clk 0:00:46]} 31. Kd3 {[%clk 0:00:18]}  f5 {[%clk 0:00:42]} 32. Kd4 {[%clk 0:00:18]}  f4 {[%clk 0:00:41]} 33. g4 {[%clk 0:00:14]}  Rxh4 {[%clk 0:00:40]} 34. Rxh4 {[%clk 0:00:13]}  Rxh4 {[%clk 0:00:40]} 35. Re1 {[%clk 0:00:14]}  Rh3 {[%clk 0:00:38]} 36. Kxd5 {[%clk 0:00:13]}  Ne3+ {[%clk 0:00:37]} 37. Ke4 {[%clk 0:00:13]}  Rh2 {[%clk 0:00:31]} 38. Ra1 {[%clk 0:00:11]}  Ng2 {[%clk 0:00:28]} 39. g5 {[%clk 0:00:10]}  Rh5 {[%clk 0:00:26]} 40. Kf5 {[%clk 0:00:09]}  Kd7 {[%clk 0:00:24]} 41. Rg1 {[%clk 0:00:09]}  Ne3+ {[%clk 0:00:23]} 42. Kxf4 {[%clk 0:00:09]}  Nd5+ {[%clk 0:00:22]} 43. Kg4 {[%clk 0:00:09]}  Rh8 {[%clk 0:00:20]} 44. c4 {[%clk 0:00:10]}  Ne3+ {[%clk 0:00:19]} 45. Kf4 {[%clk 0:00:09]}  Nxc4 {[%clk 0:00:20]} 46. g6 {[%clk 0:00:09]}  Rg8 {[%clk 0:00:19]} 47. Kg5 {[%clk 0:00:10]}  Ne5 {[%clk 0:00:18]} 48. Kf6 {[%clk 0:00:06]}  Nxf3 {[%clk 0:00:16]} 49. Rg3 {[%clk 0:00:07]}  Nh4 {[%clk 0:00:15]} 50. g7 {[%clk 0:00:07]}  b5 {[%clk 0:00:11]} 51. Rh3 {[%clk 0:00:07]}  Nf5 {[%clk 0:00:09]} 52. Kxf5 {[%clk 0:00:07]}  Rxg7 {[%clk 0:00:09]} 53. Rh6 {[%clk 0:00:07]}  Rf7+ {[%clk 0:00:08]} 54. Ke5 {[%clk 0:00:07]}  Rf2 {[%clk 0:00:09]} 55. Rxa6 {[%clk 0:00:07]}  Kc7 {[%clk 0:00:09]} 56. Kd5 {[%clk 0:00:06]}  Kb7 {[%clk 0:00:09]} 57. Ra3 {[%clk 0:00:07]}  Kb6 {[%clk 0:00:10]} 58. Kd4 {[%clk 0:00:07]}  b4 {[%clk 0:00:10]} 59. Ra8 {[%clk 0:00:07]}  Kb5 {[%clk 0:00:11]} 60. Rb8+ {[%clk 0:00:06]}  Ka4 {[%clk 0:00:10]} 61. Kc4 {[%clk 0:00:05]}  Rc2+ {[%clk 0:00:09]} 62. Kd3 {[%clk 0:00:03]}  Rxa2 {[%clk 0:00:09]} 63. Kc4 {[%clk 0:00:02]}  Rc2+ {[%clk 0:00:08]} 64. Kd3 {[%clk 0:00:02]}  Rc6 {[%clk 0:00:07]} 65. Kd2 {[%clk 0:00:02]}  Kb3 {[%clk 0:00:07]} 66. Rh8 {[%clk 0:00:02]}  Rc2+ {[%clk 0:00:05]} 67. Kd1 {[%clk 0:00:02]}  Rc3 {[%clk 0:00:05]} 68. Rh2 {[%clk 0:00:00]}  Rd3+ {[%clk 0:00:04]} 0-1


[Site "https://www.chess.com"]

[Event "Titled Tuesday Blitz May 16 Early 2023"]
[White "Lesbekova, Assel"]
[Black "Arat, Ufuk Sezen"]
[WhiteFideId "13713248"]
[BlackFideId "6309089"]
[WhiteElo "1805"]
[BlackElo "2289"]
[Result "1-0"]
[Round "11"]
[TimeControl "180+2"]
[Date "2023.05.16"]
[WhiteClock "0:00:23"]
[BlackClock "0:00:02"]

1. e4 {[%clk 0:03:00]}  c5 {[%clk 0:02:59]} 2. Nf3 {[%clk 0:02:59]}  e6 {[%clk 0:03:00]} 3. d4 {[%clk 0:02:59]}  cxd4 {[%clk 0:03:01]} 4. Nxd4 {[%clk 0:03:00]}  Nc6 {[%clk 0:03:01]} 5. Nc3 {[%clk 0:02:57]}  Qc7 {[%clk 0:03:02]} 6. g3 {[%clk 0:02:55]}  a6 {[%clk 0:03:02]} 7. Bg2 {[%clk 0:02:55]}  Nf6 {[%clk 0:03:03]} 8. O-O {[%clk 0:02:54]}  Nxd4 {[%clk 0:03:03]} 9. Qxd4 {[%clk 0:02:54]}  Bc5 {[%clk 0:03:04]} 10. Qd3 {[%clk 0:02:54]}  d6 {[%clk 0:02:58]} 11. Bf4 {[%clk 0:02:50]}  h6 {[%clk 0:02:55]} 12. Rfd1 {[%clk 0:02:46]}  e5 {[%clk 0:02:55]} 13. Be3 {[%clk 0:02:45]}  Be6 {[%clk 0:02:47]} 14. a3 {[%clk 0:02:34]}  O-O {[%clk 0:02:37]} 15. Bxc5 {[%clk 0:02:27]}  dxc5 {[%clk 0:02:36]} 16. Nd5 {[%clk 0:02:28]}  Bxd5 {[%clk 0:02:36]} 17. exd5 {[%clk 0:02:28]}  Qd6 {[%clk 0:02:37]} 18. c4 {[%clk 0:02:27]}  Nd7 {[%clk 0:02:36]} 19. Bh3 {[%clk 0:02:16]}  Rae8 {[%clk 0:01:49]} 20. Bxd7 {[%clk 0:01:59]}  Qxd7 {[%clk 0:01:50]} 21. b4 {[%clk 0:02:00]}  Rc8 {[%clk 0:01:41]} 22. d6 {[%clk 0:01:55]}  Rfd8 {[%clk 0:01:36]} 23. Qd5 {[%clk 0:01:52]}  cxb4 {[%clk 0:01:29]} 24. axb4 {[%clk 0:01:51]}  Qg4 {[%clk 0:00:51]} 25. Rac1 {[%clk 0:01:42]}  e4 {[%clk 0:00:28]} 26. c5 {[%clk 0:01:18]}  e3 {[%clk 0:00:27]} 27. Rd4 {[%clk 0:01:07]}  exf2+ {[%clk 0:00:25]} 28. Kxf2 {[%clk 0:01:08]}  Qg6 {[%clk 0:00:21]} 29. Qe4 {[%clk 0:00:46]}  Qf6+ {[%clk 0:00:21]} 30. Qf4 {[%clk 0:00:46]}  Qe6 {[%clk 0:00:21]} 31. Re1 {[%clk 0:00:44]}  Qb3 {[%clk 0:00:20]} 32. d7 {[%clk 0:00:33]}  Ra8 {[%clk 0:00:19]} 33. Re7 {[%clk 0:00:25]}  Qa2+ {[%clk 0:00:16]} 34. Rd2 {[%clk 0:00:25]}  Qb3 {[%clk 0:00:13]} 35. Rde2 {[%clk 0:00:24]}  Kh7 {[%clk 0:00:04]} 36. Qf5+ {[%clk 0:00:23]}  g6 {[%clk 0:00:04]} 37. Rxf7+ {[%clk 0:00:23]}  Kh8 {[%clk 0:00:02]} 38. Qf6+ {[%clk 0:00:23]} 1-0


[Site "https://www.chess.com"]